Cogmind - Beta 16.1 @@@ ROGUE MODE // 2026.03.30 @ 20:14:49 Player: KURIIRI Result: Self-destructed Performance ------------- Evolutions (4) 2000 Regions Visited (6) 1200 Robots Destroyed (68) 340 Value Destroyed (1877) 1877 Prototype IDs (28) 560 Alien Tech Used (0) 0 Bonus (791) 791 TOTAL SCORE: 6768 Bonus ------- Registered with UFD 300 Met Optimus in HQ 500 Friendly Fire -9 Cogmind --------- Core Integrity 622/850 Matter 278/300 Energy 100/100 System Corruption 10% Temperature Cool (0) Movement Core (50) Location -6/Waste Parts ------- > --- POWER (1) -------- (None) > --- PROPULSION (4) --- (None) > --- UTILITY (7) ------ Advanced Signal Interpreter Experimental Targeting Computer > --- WEAPON (3) ------- (None) > --- INVENTORY (5) ---- Compact Wheel Huge Storage Unit Scrapoid Pod Multitool Peak State ------------ > --- POWER ------------ Angular Momentum Engine > --- PROPULSION ------- Medium Treads Wheel Wheel Compact Wheel > --- UTILITY ---------- Advanced Heat Sink High-capacity Storage Unit Advanced Sensor Array Advanced Signal Interpreter Experimental Targeting Computer Layered Medium Armor Plating System Shield > --- WEAPON ----------- Force Rifle Plasma Cannon Magnetic Acceleration Cannon > --- INVENTORY -------- Light Angular Momentum Engine Compact Wheel Advanced Heat Sink Improved Cooling System Huge Storage Unit Experimental Sensor Array Advanced Targeting Computer Improved Light Armor Plating Improved Light Armor Plating Gun Armor Hacking Suite Scrapoid Pod Gauss Rifle Gauss Rifle Gauss Cannon Remote Datajack Plasma Cutter Multitool Shock Maul [Rating: 65] Favorites ----------- Power Ion Engine Engine Ion Engine Propulsion Wheel Treads Light Treads Leg Aluminum Leg Wheel Wheel Utility High-capacity Storage Unit Device Advanced Sensor Array Storage High-capacity Storage Unit Processor Advanced Signal Interpreter Hackware System Shield Protection Medium Armor Plating Weapon Subdweller Beam Cannon Energy Gun Subdweller Laser Energy Cannon Subdweller Beam Cannon Ballistic Gun Autogun Ballistic Cannon Light Cannon Special Weapon Multitool Impact Weapon Power Maul Slashing Weapon Ripper Build | -11 -10 -10 -9 -9 -6 -6 ------- Run | Yrd Mat Sub Rec Scr Fac Was Slots Evolved 8 | . . . . . 8 . Power . | . . . . . . . Propulsion 2 | . . . . . 2 . Utility 5 | . . . . . 5 . Weapon 1 | . . . . . 1 . Parts Attached 60 | 1 14 14 4 4 22 1 Power 1 | . . . . . 1 . Engine 1 | . . . . . 1 . Core . | . . . . . . . Reactor . | . . . . . . . Propulsion 14 | . 4 4 1 1 4 . Treads 4 | . 3 . . . 1 . Leg . | . . . . . . . Wheel 10 | . 1 4 1 1 3 . Hover . | . . . . . . . Flight . | . . . . . . . Utility 21 | 1 3 4 1 1 11 . Device 7 | 1 . 1 . 1 4 . Storage 2 | . 1 1 . . . . Processor 5 | . 2 . . . 3 . Hackware 2 | . . . . . 2 . Protection 5 | . . 2 1 . 2 . Artifact . | . . . . . . . Weapon 24 | . 7 6 2 2 6 1 Energy Gun 8 | . 2 1 2 2 . 1 Energy Cannon 5 | . . 3 . . 2 . Ballistic Gun 4 | . 3 1 . . . . Ballistic Cannon 3 | . 2 . . . 1 . Launcher . | . . . . . . . Special Weapon 1 | . . . . . 1 . Impact Weapon 2 | . . . . . 2 . Slashing Weapon 1 | . . 1 . . . . Piercing Weapon . | . . . . . . . Special Melee Weapon . | . . . . . . . Unidentified Prototypes 3 | . . . . . 2 1 Parts Lost 13 | . 1 1 . . 5 6 Power 1 | . . . . . . 1 Propulsion 5 | . 1 . . . 2 2 Utility 5 | . . 1 . . 3 1 Weapon 2 | . . . . . . 2 Highest Loss Streak 6 | . 1 1 . . 2 6 To Critical Strikes 1 | . . . . . . 1 Average Backups 12 | 6 7 9 20 18 17 19 Power . | 1 1 . 2 . . 1 Propulsion 2 | 4 2 2 7 2 . 1 Utility 4 | . 1 2 7 7 8 9 Weapon 3 | 1 2 3 3 5 4 4 Tool/Special . | . . . . . . . Unused Backups 46 | . 3 7 1 15 4 16 Power 6 | . . 1 . 2 2 1 Propulsion 5 | . . . 1 3 . 1 Utility 18 | . 1 1 . 7 1 8 Weapon 13 | . 2 5 . 3 . 3 Tool/Special 4 | . . . . . 1 3 Average Slot Usage (%) 89 | . 99 84 100 90 88 97 Engine 12 | . 14 14 14 14 6 6 Treads 11 | . 18 18 . . . 5 Wheel 15 | . 6 9 28 28 18 19 Device 4 | . . 4 2 2 11 12 Storage 8 | . 14 4 14 14 6 6 Processor 3 | . 13 . . . 10 13 Protection 7 | . . 8 11 11 7 6 Energy Gun 9 | . 7 1 26 19 12 6 Energy Cannon 7 | . . 14 . . 2 6 Ballistic Gun 4 | . 12 6 . . . . Ballistic Cannon 1 | . 7 . . . 2 5 Peak Build Rating 65 | 7 11 16 16 26 64 65 Average Rating 17 | 6 8 11 14 16 51 61 On Entrance 20 | 6 7 11 16 14 24 64 Avg Prop Armor Cover (%) 6 | . 10 5 4 . 6 6 Naked Turns . | . . . . . . . Heaviest Build 83 | 14 31 58 60 60 82 83 Greatest Support 40 | 20 40 40 26 26 36 36 Greatest Overweight (x) 5 | . 3 5 5 2 4 2 Average Overweight (x) 1 | . 1 1 2 2 1 1 Largest Inventory Capacity 20 | 8 15 20 20 20 20 20 Average Capacity 14 | 8 14 10 20 20 20 18 Most Carried 20 | 6 12 20 20 20 20 20 Average Carried 13 | 6 7 9 20 18 18 18 Final Capacity 20 | 8 15 20 20 20 20 5 Final Carried 20 | 6 12 20 20 20 20 5 Class Distribution -------------------- 78% | Mutant 10% | Subdweller-Mutant 4% | Skirmisher 4% | Scavenger-Skirmisher Dominant Class ---------------- Mutant | -10/Materials Mutant | -10/Subcaves Mutant | -9/Recycling Mutant | -9/Scraptown Skirmisher | -6/Factory Scavenger-Skirmisher | -6/Waste Resources | -11 -10 -10 -9 -9 -6 -6 ----------- Run | Yrd Mat Sub Rec Scr Fac Was Matter Collected 1475 | 246 344 310 50 20 505 . Remotely 10 | 10 . . . . . . Salvage Created 2978 | 83 594 599 574 . 1128 . Parts 160 | 4 48 43 19 . 46 . Haulers Intercepted 2 | . 1 . . . 1 . Recyclers Shooed 3 | . . . 2 . 1 . Parts Field Recycled . | . . . . . . . Retrieved Matter . | . . . . . . . Parts Self-Destructed 3 | . . 3 . . . . Prevented . | . . . . . . . Parts Restored . | . . . . . . . Kills | -11 -10 -10 -9 -9 -6 -6 ------- Run | Yrd Mat Sub Rec Scr Fac Was Combat Hostiles Destroyed 39 | . 12 12 4 . 11 . Melee 1 | . . . 1 . . . Guns 16 | . 7 3 3 . 3 . Cannons 20 | . 5 8 . . 7 . Classes Destroyed 14 | 2 7 2 1 . 2 . Worker 8 | . 3 . . . 5 . Builder 2 | . 1 . . . 1 . Tunneler 2 | 1 . . . . 1 . Hauler 2 | . 1 . . . 1 . Recycler 8 | 1 . . 5 . 2 . Operator 2 | . 1 . . . 1 . Watcher 5 | . 3 . . . 2 . Swarmer 3 | . 3 . . . . . Grunt 13 | . 9 . . . 4 . Sentry 6 | . . . 4 . 2 . Hunter 2 | . . . . . 2 . Programmer 3 | . . . . . 3 . Artisan 2 | . . 2 . . . . Subdweller 12 | . . 12 . . . . Best Kill Streak 5 | 2 5 2 3 . 3 . Combat Bots Only 3 | . 3 2 2 . 2 . Max Kills in Single Turn 3 | 1 2 1 1 . 3 . Gunslinging . | . . . . . . . Exploded . | . . . . . . . Melee 1 | . . . 1 . . . Uniques/NPCs Destroyed . | . . . . . . . Combat | -11 -10 -10 -9 -9 -6 -6 -------- Run | Yrd Mat Sub Rec Scr Fac Was Hostile Shots Fired 206 | . 70 31 12 . 88 5 Missed 56 | . 21 3 8 . 24 . Hits 150 | . 49 28 4 . 64 5 Melee 5 | . . . . . . 5 Projectile 145 | . 49 28 4 . 64 . AOE 5 | . . 5 . . . . Critical Strikes 6 | . 1 1 . . . 4 Damage Taken 2719 | . 587 796 64 . 1023 249 Core 422 | . 71 123 . . 89 139 Absorbed by Shields . | . . . . . . . Regen/Repaired (Parts) 374 | . 125 . . 249 . . Core Remaining (%) 61 | 100 . . . 22 . . Volleys Fired 210 | 9 53 73 20 . 55 . Largest 3 | 2 2 2 2 . 3 . Hottest 230 | 40 80 160 120 . 230 . Shots Fired 384 | 18 106 106 34 . 120 . Gun 246 | 18 84 43 34 . 67 . Cannon 137 | . 22 63 . . 52 . Launcher . | . . . . . . . Special 1 | . . . . . 1 . Kinetic 153 | 18 65 40 . . 30 . Thermal 231 | . 41 66 34 . 90 . Explosive . | . . . . . . . Electromagnetic . | . . . . . . . Robot Hit Streak 23 | 6 11 18 23 . 10 . Robot Miss Streak 3 | 2 3 1 1 . 3 . Penetration Max . | . . . . . . . Secondary Targets 2 | . 2 . . . . . Max Gunslinging Chain 1 | . 1 . . . . . Shots Hit Robots 244 | 12 65 59 28 . 80 . Core Hits 101 | 4 29 21 11 . 36 . Critical Kills 2 | . . 1 . . 1 . Critical Parts Destroyed . | . . . . . . . Critical Strikes 11 | . 1 1 . . 9 . Burn 8 | . 1 . . . 7 . Meltdown 1 | . . 1 . . . . Blast 1 | . . . . . 1 . Smash 1 | . . . . . 1 . Melee Attacks 8 | . . 1 3 . 4 . Impact 4 | . . . . . 4 . Slashing 4 | . . 1 3 . . . Piercing . | . . . . . . . Sneak Attacks 3 | . . . 1 . 2 . Combat Hostiles . | . . . . . . . Follow-up Attacks . | . . . . . . . Damage Inflicted 5339 | 129 1027 1213 687 . 2283 . Guns 2921 | 129 754 464 537 . 1037 . Cannons 2087 | . 271 749 . . 1067 . Explosions . | . . . . . . . Melee 329 | . . . 150 . 179 . Ramming 2 | . 2 . . . . . Kinetic 1877 | 129 665 464 . . 619 . Thermal 3131 | . 360 749 537 . 1485 . Explosive . | . . . . . . . Electromagnetic . | . . . . . . . Impact 179 | . . . . . 179 . Slashing 150 | . . . 150 . . . Piercing . | . . . . . . . Highest Corruption 10 | . . . . . 1 10 Average Corruption 2 | . . . . . 1 8 Corruption Purged . | . . . . . . . Corruption Blocked . | . . . . . . . Effects 7 | . . . . . 4 3 Message Errors 3 | . . . . . 2 1 Matter Fused 2 | . . . . . 1 1 Heat Flow Errors 1 | . . . . . . 1 Alerts 1 | . . . . . 1 . Overload Shots . | . . . . . . . Overflow Damage 55 | . . . . . 55 . Projectiles 20 | . . . . . 20 . Explosions . | . . . . . . . Melee 35 | . . . . . 35 . Knockbacks 11 | . 3 . . . 8 . Impact 1 | . . . . . 1 . Kinetic 10 | . 3 . . . 7 . Secondary . | . . . . . . . Self-Inflicted Damage 1 | . 1 . . . . . Shots . | . . . . . . . Rammed 2 | . 2 . . . . . Targets Rammed 2 | . 2 . . . . . Kicked . | . . . . . . . Crushed . | . . . . . . . Highest Temperature 387 | . 253 144 320 . 387 216 Average Temperature 99 | . 83 44 101 . 135 108 Received Heat Transfer 708 | . 333 99 18 . 258 . Effects 8 | . . . 2 . 6 . Shutdowns 2 | . . . . . 2 . Interference 6 | . . . 2 . 4 . Siege Activations . | . . . . . . . Martial Activations . | . . . . . . . Shielding Activations . | . . . . . . . Robots Disrupted . | . . . . . . . Combat Hostiles . | . . . . . . . Robots Corrupted 1 | . . . . . 1 . Combat Hostiles . | . . . . . . . Parts Fried 4 | . . . . . 4 . Impact Corruptions 1 | . . . . . 1 . Robots Melted 2 | . . 1 . . 1 . Combat Hostiles 2 | . . 1 . . 1 . Parts Melted 13 | . . 3 . . 10 . Heat Transferred 6584 | . 1110 999 625 . 3850 . Parts Sabotaged . | . . . . . . . Parts Stolen . | . . . . . . . Parts Stripped . | . . . . . . . Power Chain Reactions . | . . . . . . . Alert | -11 -10 -10 -9 -9 -6 -6 ------- Run | Yrd Mat Sub Rec Scr Fac Was Maximum Alert Level . | . . . . . . . Low Security (%) 100 | 100 100 . 100 . 100 100 Level 1 . | . . . . . . . Level 2 . | . . . . . . . Level 3 . | . . . . . . . Level 4 . | . . . . . . . Level 5 . | . . . . . . . High Security . | . . . . . . . Max Security . | . . . . . . . Peak Influence 132 | 5 132 . 60 . 77 24 Initial 24 | . 3 . . . . 24 Average 26 | 2 41 . 20 . 15 8 Influence Increases 1163 | 10 430 . 317 . 406 . Destroy 0b10 Robot/C 540 | . 240 . 80 . 220 . Destroy 0b10 Robot/NC 145 | 10 45 . 25 . 65 . Destroy Leader 134 | . 58 . . . 76 . Successful Hack 62 | . 26 . 2 . 34 . Select Force Hacks 270 | . 60 . 210 . . . Destroy Structure 12 | . 1 . . . 11 . Influence Decreases 1163 | 5 379 56 275 42 337 69 Entered New Map 117 | . 2 28 . 42 . 45 Time Decay 994 | 5 372 28 275 . 304 10 Lost Part 28 | . 5 . . . 23 . Lost Ally 24 | . . . . . 10 14 Squads Dispatched 10 | . 4 . . . 6 . Investigation 3 | . 3 . . . . . Extermination 3 | . . . . . 3 . Reinforcement 4 | . 1 . . . 3 . Assault . | . . . . . . . Garrison . | . . . . . . . Intercept . | . . . . . . . Searches Triggered . | . . . . . . . Construction Impeded . | . . . . . . . Haulers Reinforced 1 | . . . . . 1 . Active Scanning Responses . | . . . . . . . Cargo Convoy Interrupts . | . . . . . . . Stealth | -11 -10 -10 -9 -9 -6 -6 --------- Run | Yrd Mat Sub Rec Scr Fac Was Distress Signals 1 | . 1 . . . . . Communications Jammed . | . . . . . . . Distress Signals . | . . . . . . . Times Spotted 75 | . 21 31 4 . 15 4 Peak Tracking Total 6 | . 3 6 2 . 2 3 Tactical Retreats 1 | . . . . . . 1 Traps | -11 -10 -10 -9 -9 -6 -6 ------- Run | Yrd Mat Sub Rec Scr Fac Was Traps Triggered 3 | . 1 1 . . 1 . Indirectly . | . . . . . . . Trap Hack Attempts . | . . . . . . . Triggered . | . . . . . . . Disarmed . | . . . . . . . Reprogrammed . | . . . . . . . Reused . | . . . . . . . Traps Extracted . | . . . . . . . Installed . | . . . . . . . Triggered . | . . . . . . . Machines | -11 -10 -10 -9 -9 -6 -6 ---------- Run | Yrd Mat Sub Rec Scr Fac Was Machines Disabled 1 | . . 1 . . . . Max in Single Turn 1 | . . 1 . . . . Machines Repaired . | . . . . . . . Machines Dismantled . | . . . . . . . Machines Sabotaged . | . . . . . . . Overloaded Fab Kills . | . . . . . . . Hacking | -11 -10 -10 -9 -9 -6 -6 --------- Run | Yrd Mat Sub Rec Scr Fac Was Machines Accessed 27 | . 8 1 11 3 4 . Terminals 12 | . 5 . 4 . 3 . Fabricators 1 | . . . . . 1 . Repair Stations 1 | . 1 . . . . . Recycling Units 9 | . 2 . 7 . . . Scanalyzers . | . . . . . . . Garrison Access . | . . . . . . . Total Hacks 93 | . 28 1 21 25 18 . Successful 69 | . 18 1 13 25 12 . Failed 24 | . 10 . 8 . 6 . Catastrophic 1 | . . . 1 . . . Database Lockouts . | . . . . . . . Manual 53 | . 25 . 20 . 8 . Terminals 52 | . 24 . 12 . 16 . Fabricators 2 | . . . . . 2 . Repair Stations 2 | . 2 . . . . . Recycling Units 11 | . 2 . 9 . . . Scanalyzers . | . . . . . . . Garrison Access . | . . . . . . . Terminal Hacks 38 | . 5 1 2 25 5 . Record 25 | . . . . 25 . . Robot Analysis 4 | . 3 . . . 1 . Prototype ID Bank 3 | . 1 . 2 . . . Branch Access Points 1 | . . . . . 1 . Terminal Index 1 | . . . . . 1 . Recycling Unit Index 1 | . . . . . 1 . Locate Traps 1 | . 1 . . . . . Recall Reinforcements 1 | . . . . . 1 . Proto ID Catalog 1 | . . 1 . . . . Fabricator Hacks 1 | . . . . . 1 . Network Status 1 | . . . . . 1 . Repair Station Hacks 2 | . 2 . . . . . Scan Component 1 | . 1 . . . . . Repair 1 | . 1 . . . . . Recycling Unit Hacks . | . . . . . . . Scanalyzer . | . . . . . . . Garrison Access Hacks . | . . . . . . . Unauthorized Hacks 28 | . 11 . 11 . 6 . Terminals 18 | . 9 . 4 . 5 . Assimilate 1 | . 1 . . . . . Botnet 6 | . 2 . 2 . 2 . Operators 1 | . 1 . . . . . Skim 10 | . 5 . 2 . 3 . Fabricators 1 | . . . . . 1 . Report 1 | . . . . . 1 . Repair Stations . | . . . . . . . Recycling Units 9 | . 2 . 7 . . . Tunnel 9 | . 2 . 7 . . . Scanalyzers . | . . . . . . . Garrison Access . | . . . . . . . Data Cores Recovered 1 | . 1 . . . . . Used . | . . . . . . . Hacking Detections 13 | . 6 . 4 . 3 . Full Trace Events 2 | . . . 2 . . . Feedback Events . | . . . . . . . Feedback Blocked . | . . . . . . . Robot Schematics Acquired . | . . . . . . . Robots Built . | . . . . . . . Authchips . | . . . . . . . Time . | . . . . . . . Total Robot Build Rating . | . . . . . . . Part Schematics Acquired . | . . . . . . . Parts Built . | . . . . . . . Authchips . | . . . . . . . Time . | . . . . . . . Total Part Build Rating . | . . . . . . . Part Studies Acquired . | . . . . . . . Parts Repaired 1 | . 1 . . . . . Time 26 | . 26 . . . . . Parts Recycled . | . . . . . . . Recycled Matter . | . . . . . . . Retrieved Matter . | . . . . . . . Retrieved Components . | . . . . . . . Parts Scanalyzed . | . . . . . . . Part Schematics Acquired . | . . . . . . . Parts Damaged . | . . . . . . . Bothacking | -11 -10 -10 -9 -9 -6 -6 ------------ Run | Yrd Mat Sub Rec Scr Fac Was Used RIF Installer . | . . . . . . . Robots Hacked . | . . . . . . . Non-combat . | . . . . . . . Combat . | . . . . . . . Robot Hacks Applied . | . . . . . . . Relay Couplers Released . | . . . . . . . Fabnet Peak Effective % . | . . . . . . . Robots Rewired 1 | . . . . . 1 . Allies Hacked . | . . . . . . . Hacks Repelled . | . . . . . . . Allies | -11 -10 -10 -9 -9 -6 -6 -------- Run | Yrd Mat Sub Rec Scr Fac Was Total Allies 3 | . 1 . . . 1 1 Largest Group 2 | . 1 1 1 1 2 1 Highest-Rated Group 39 | . 10 10 10 10 39 31 Highest-Rated Ally 31 | . 10 10 10 10 29 31 Initial UFD Resources 24 | . . . . . 24 24 Total Orders 15 | . 9 2 2 . 2 . STAY 8 | . 5 1 1 . 1 . FOLLOW 7 | . 4 1 1 . 1 . Ally Attacks 19 | . . . . . 3 16 Total Damage 348 | . . . . . 36 312 Kills . | . . . . . . . Allies Corrupted . | . . . . . . . Allies Melted . | . . . . . . . Intel | -11 -10 -10 -9 -9 -6 -6 ------- Run | Yrd Mat Sub Rec Scr Fac Was Active Infowar (turns) 3152 | . . 1454 124 292 1204 78 Sensors 1574 | . . . . 292 1204 78 Terrain 1578 | . . 1454 124 . . . Robot Analysis Total 4 | . 3 . . . 1 . Derelict Logs Recovered 7 | . . 2 . 5 . . Drone Launches . | . . . . . . . Drone Recoveries . | . . . . . . . Exploration | -11 -10 -10 -9 -9 -6 -6 ------------- Run | Yrd Mat Sub Rec Scr Fac Was Turns Passed 9345 | 32 1261 4252 850 1624 1242 84 Spaces Moved 5852 | 5 679 2303 599 1405 794 67 Core . | . . . . . . . Treads 1839 | . 296 1543 . . . . Legs 96 | 5 91 . . . . . Wheels 3917 | . 292 760 599 1405 794 67 Hover . | . . . . . . . Flight . | . . . . . . . Fastest Speed 100 | 120 110 107 120 110 101 100 Average Speed 132 | 120 141 152 125 112 107 115 Slowest Speed 240 | 120 240 240 155 120 140 120 Overloaded Moves . | . . . . . . . Propulsion Burnouts . | . . . . . . . Robots Hopped . | . . . . . . . Potential Cave-ins . | . . . . . . . Cave-ins Triggered . | . . . . . . . Exploration Rate (%) 56 | 2 91 64 90 85 19 41 Regions Visited 6 Branch Regions 3 Pre-discovered Areas 12 | . 2 2 7 1 . . Known Exits Taken 1 | . 1 . . . . . Unknown Exits Taken 4 | 1 . 1 1 1 . . Scrap Searched 19 | . . 10 . 9 . . Spaces Dug 12 | . . 9 . . 3 . Terrain Destroyed 22 | . . 11 . . 11 . Melee 2 | . . 1 . . 1 . Projectile 20 | . . 10 . . 10 . AOE . | . . . . . . . Terrain Rammed . | . . . . . . . Walls Destroyed . | . . . . . . . Machines Disabled . | . . . . . . . Actions | -11 -10 -10 -9 -9 -6 -6 --------- Run | Yrd Mat Sub Rec Scr Fac Was Total 7075 | 14 873 2936 655 1456 1068 73 Wait 780 | . 109 494 26 5 141 5 Move 5847 | 4 678 2302 598 1404 794 67 Hop . | . . . . . . . Pick Up 72 | . 9 27 1 21 14 . Fast Attach 21 | 1 4 7 2 . 7 . Attach 16 | . 3 3 . 1 9 . Detach 1 | . . . . . 1 . Swap 33 | . 9 4 2 4 13 1 Drop 58 | . 6 18 3 21 10 . Fire 210 | 9 53 73 20 . 55 . Melee 8 | . . 1 3 . 4 . Ram 2 | . 2 . . . . . Kick . | . . . . . . . Crush . | . . . . . . . Escape Stasis . | . . . . . . . Rewire 18 | . . . . . 18 . Trap . | . . . . . . . Miscellaneous 9 | . . 7 . . 2 . Route ------- -11/Scrapyard -10/Materials (discovered 6 exits: *Mat x3 / [*Min x2] / *Sub) -10/Subcaves (discovered 3 exits: *Mat x2 / *Rec) -9/Recycling (discovered 2 exits: [*Fac] / *Scr) -9/Scraptown (discovered 2 exits: *Fac x2) -6/Factory (discovered 3 exits: *Fac / *Low x2) -6/Waste History --------- Turn | Location | Event 27 | -11/Scrapyard | Discovered new exit (range 3) 33 | -11/Scrapyard | Entered Materials 288 | -10/Materials | Discovered new exit (range 9) 310 | -10/Materials | Build established: Mutant 522 | -10/Materials | Discovered new exit (range 16) 633 | -10/Materials | Derelicts attacked the area 643 | -10/Materials | Discovered new exit (range 14) 677 | -10/Materials | Identified exit to Subcaves 677 | -10/Materials | Identified exit to Materials 710 | -10/Materials | Learned 2 Mines zone layouts 733 | -10/Materials | Learned Storage non-interactive machine intel 748 | -10/Materials | Learned Storage trap positions 1238 | -10/Materials | Repaired Lgt. Treads 1294 | -10/Materials | Entered Subcaves 1294 | -10/Subcaves | Accompanied by 1 ally 1295 | -10/Subcaves | Identified exit to Materials 1527 | -10/Subcaves | Learned location of Zion (-7) 1527 | -10/Subcaves | Met a Zionite searching for "candidates" 1528 | -10/Subcaves | Ambushed by swarm of Subdwellers 1610 | -10/Subcaves | Disturbed a concealed Subdweller 1630 | -10/Subcaves | Learned location of Storage (-9) 1698 | -10/Subcaves | A swath of the cavern ceiling suddenly collapsed 1793 | -10/Subcaves | Shifting Twisted Machinery released Scrap Shield 1938 | -10/Subcaves | Shifting Twisted Machinery released Sub. Shrapnel Launcher 2120 | -10/Subcaves | Learned 2 Materials zone layouts 2477 | -10/Subcaves | Ambushed by Subdweller buried in earth 2533 | -10/Subcaves | Build established: Subdweller-Mutant 2831 | -10/Subcaves | Ambushed by Subdweller buried in earth 2832 | -10/Subcaves | Core integrity fell below 50% 2862 | -10/Subcaves | Lost 4 allies 3557 | -10/Subcaves | Visited 4L-MR0's lab 3571 | -10/Subcaves | Found Gun Armor 3763 | -10/Subcaves | Build established: Mutant 4592 | -10/Subcaves | Discovered new exit (range 3) 5546 | -10/Subcaves | Entered Recycling 5546 | -9/Recycling | Accompanied by 1 ally 5992 | -9/Recycling | Discovered new exit (range 16) 6367 | -9/Recycling | Scanned before Scraplab entrance 6384 | -9/Recycling | Entered Scraplab 6393 | -9/Recycling | Discovered new exit (range 2) 6396 | -9/Recycling | Entered Scraptown 6396 | -9/Scraptown | Accompanied by 1 ally 6483 | -9/Scraptown | Visited UFD Registry 6483 | -9/Scraptown | Registered with UFD as "Wrenchbrain" 6513 | -9/Scraptown | Visited Red Mages 6584 | -9/Scraptown | Visited CR-KLE's Repair Center 6606 | -9/Scraptown | Visited TADAMA 6648 | -9/Scraptown | Scanned Subdweller tech in exchange for log data 6651 | -9/Scraptown | Learned Research emergency access door positions 6652 | -9/Scraptown | Learned Factory terminal intel 6653 | -9/Scraptown | Learned Research interactive machine intel 6654 | -9/Scraptown | Learned location of Armory (-4) 6656 | -9/Scraptown | Learned location of 1 exit from Factory 6696 | -9/Scraptown | Guru changed UFD alias to "Autodrive" 6738 | -9/Scraptown | Discovered new exit (range 11) 7096 | -9/Scraptown | Visited Shadow of the Wyrm 7105 | -9/Scraptown | Visited Cyclists 7116 | -9/Scraptown | Entered Cyclist Reading Room 7154 | -9/Scraptown | Visited Bundlers 7254 | -9/Scraptown | Visited Spacefarers 7349 | -9/Scraptown | Visited Junk Repository 7416 | -9/Scraptown | Visited Infowarlord's Domain 7421 | -9/Scraptown | Found Exp. Sensor Array 7442 | -9/Scraptown | Visited Observation Area 7554 | -9/Scraptown | Visited Science Guys 7569 | -9/Scraptown | Visited Scrap Suit Storage 7586 | -9/Scraptown | Visited Abandonware Association 7615 | -9/Scraptown | Visited LU-1G1's Boring Crew 7642 | -9/Scraptown | Visited Scrapoid Research Area 7659 | -9/Scraptown | Visited Scrapoid Pod Storage 7690 | -9/Scraptown | Visited Cartography Club 7757 | -9/Scraptown | CR-KLE repaired 6 parts 7824 | -9/Scraptown | Found Scrapoid Pod 7939 | -9/Scraptown | Met Optimus 7939 | -9/Scraptown | Accepted into 0bPrime 8012 | -9/Scraptown | Discovered new exit (range 3) 8020 | -9/Scraptown | Entered Factory 8020 | -6/Factory | Accompanied by 1 ally 8020 | -6/Factory | Evolved 8 slots: Propulsion x2, Utility x5, Weapon x1 8021 | -6/Factory | Identified exit to Factory 8022 | -6/Factory | Loaded intel: 26 terminal locations 8636 | -6/Factory | Found Prototype Processor 8636 | -6/Factory | Identified Exp. Targeting Computer 8668 | -6/Factory | Identified exit to Lower Caves 9018 | -6/Factory | Build established: Skirmisher 9262 | -6/Factory | Sucked down chute 9262 | -6/Factory | Entered Waste 9263 | -6/Waste | Met a frightened Derelict 9270 | -6/Waste | Spotted C-40 Crusher 9273 | -6/Waste | Spotted C-40 Crusher 9277 | -6/Waste | EMP discharged 9277 | -6/Waste | System corruption reached 10% 9300 | -6/Waste | Spotted C-40 Crusher 9329 | -6/Waste | Spotted C-40 Crusher 9339 | -6/Waste | Crushed by Compactor (1 part destroyed, 2 dropped) 9340 | -6/Waste | Crushed by Compactor (1 part destroyed, 1 dropped) 9343 | -6/Waste | Crushed by Compactor (1 part destroyed, 1 dropped) 9343 | -6/Waste | Crushed by Compactor (1 part destroyed, 2 dropped) 9346 | -6/Waste | Crushed by Compactor (1 part destroyed, 1 dropped) 9346 | -6/Waste | Self-destructed Last Messages --------------- 09342_ Hacking Suite crushed. 09342_ Remote Datajack crushed. 09343_ Gun Armor crushed. 09343_ Angular Momentum Engine crushed. 09343_ Lyr. Medium Armor Plating crushed. 09343_ Plasma Cutter crushed. 09343_ Gauss Cannon crushed. 09343_ Gauss Rifle crushed. 09343_ Imp. Light Armor Plating crushed. 09343_ Force Rifle crushed. 09343_ Plasma Cannon crushed. 09343_ Wheel crushed. 09344_ Adv. Heat Sink crushed. 09344_ Wheel crushed. 09346_ Lyr. Medium Armor Plating crushed. 09346_ Com. Wheel crushed. 09346_ System Shield crushed. 09346_ Adv. Heat Sink crushed. 09346_ Exp. Sensor Array crushed. 09346_ Plasma Cannon crushed. Map ----- +----------------------------------------------------+ | ?????????????????????????????????????????????????? | | ?????????????????????????????????????????????????? | | ?????????????????????????????????????????????????? | | ?????????????????????????????????????????????????? | | ?????????????????????????????????????????????????? | | ?????????????????????????????????????????????????? | | ?????????????????????????????????????????????????? | | ?????????????????????????????????????????????????? | | ?????????????????????????????????????????????????? | | ?????????#####???????######??????????????????????? | | ?????????# #??????# #??????????????????????? | | ?????????# #??????# #???????????#??????????? | | ?????????# #??????# #????????? #??????????? | | ?????????# #??????# #???????? #??????????? | | ???????### ######## ######## #####??????? | | ???????# ! ??????? | | ???????# !?????? | | ???????# * ?????? | | ???????# ?????? | | ???????### ######## ######## #??????????? | | #######??# #??????# #??????????????????????? | | #??# #??????# #??????????????????????? | | #??# [#??????# #??????????????????????? | | #### ######## #??????????????????????? | | #??????????????????????? | | CC@#??????????????????????? | | CC*#??????????????????????? | | CC#??????????????????????? | | #### ########! CC#??????????????????????? | | #??# #??????# CC#??????????????????????? | | #??# #??????# CC#??????????????????????? | | #######??# #??????# !#??????????????????????? | | ?????????# #??????# #??????????????????????? | | ????????? #??????# #??????????????????????? | | ????????? #??????# #??????????????????????? | | ????????? #??????# #??????????????????????? | | ????????? #??????# #??????????????????????? | | ????????## #??????# #??????????????????????? | | ?????????? #??????# #??????????????????????? | | ?????????? #??????# #??????????????????????? | | ?????????? ???????# #??????????????????????? | | ?????????????????????# #??????????????????????? | | ?????????????????????######??????????????????????? | | ?????????????????????????????????????????????????? | | ?????????????????????????????????????????????????? | | ?????????????????????????????????????????????????? | | ?????????????????????????????????????????????????? | | ?????????????????????????????????????????????????? | | ?????????????????????????????????????????????????? | | ?????????????????????????????????????????????????? | +----------------------------------------------------+ Best States ------------- Heat Dissipation 64 Energy Generation 18 Energy Capacity 300 Matter Stores 300 Matter Capacity 300 Sight Range 16 Robot Scan Range 16 Terrain Scan Range 14 Terrain Scan Density 10 Armor Coverage 800 Core Shielding 20 Evasion (%) 55 Targeting Accuracy 12 Target Analysis 5 Recoil Reduction 2 Offensive Hacking 10 Defensive Hacking 10 Item Schematics ----------------- None Robot Schematics ------------------ None Fabricated ------------ Nothing Repaired ---------- Lgt. Treads | 10% | -10/Materials Studied --------- None Alien Tech Used ----------------- None Achievements -------------- Longdome?! Challenges ------------ None Game ------ Seed WarlordEfficiencyBrace Manual? 0 Play Time 00:55:03 Cumulative 376.8 hours Start 2026.03.30 @ 18:44:59 End 2026.03.30 @ 20:14:49 Sessions 5 Manual Loads 0 Difficulty Rogue Special Mode None Game No. 307 Rogue 271 Adventurer 36 Explorer 0 Win Type - Total 5 Types 2/0/0/1/0/0/0/2/0/0 Lore% 71 Gallery% 66 Achievement% 54 Wizard Run 0 Options --------- Layout 1 ASCII 0 Keyboard 0 Movement Numpad Keybinds 0 Fullscreen 1 Font 48/Smallcaps Map View 50x35 Zoom Use 0% Tactical HUD 1 Map Filters NONE Filters NONE Steam 1 RUN: 44467bf6-0658-443b-9a6b-d2427f1c914f